bitfinex-derivatives/quotes_ETHF0:USTF0_20251024
["timestamp","ask_amount","ask_price","bid_price","bid_amount"]
[1761314841150,9.551,3931.4,3930.7,3.2078]
[1761314841850,9.551,3931.3,3930.7,3.2078]
[1761314842548,3.2078,3931.5,3930.7,3.2078]
[1761314842744,0.00303401,3931.7,3931.1,3.66561]
[1761314843051,3.792,3931.6,3931.1,3.2078]
[1761314843548,0.00303401,3931.7,3931.5,3.66557]
[1761314843852,3.2078,3933.3,3932.1,0.45769]
[1761314844036,4.563,3933.2,3932.1,3.2078]
[1761314844237,3.2078,3932.9,3932.1,3.2078]
[1761314844540,9.551,3932.8,3931.7,3.2078]
[1761314844734,9.5542071,3932.8,3931.7,3.2078]
[1761314845238,1.14411,3932.6,3931.7,3.2078]
[1761314845548,0.45766,3932.4,3932.2,3.2078]
[1761314845846,0.45772,3931.9,3931.8,3.2078]
[1761314846845,0.45772,3931.9,3930.9,3.2078]
[1761314846846,0.45778,3931.4,3930.9,3.2078]
[1761314847048,0.45788,3930.5,3930.4,3.2078]
[1761314847350,0.45793,3930.1,3930.0,3.2078]
[1761314847543,0.45798,3929.7,3929.6,3.21012606]
[1761314847742,10.00986432,3929.7,3929.6,3.21012606]
[1761314847937,0.4581,3928.7,3928.6,3.2078]
[1761314848245,9.55,3928.7,3928.6,3.2078]
[1761314848442,9.55,3928.7,3928.6,3.6659]
[1761314848949,9.55,3928.7,3928.6,3.2107975]
[1761314849142,3.2078,3929.3,3928.6,3.2107975]
[1761314849340,3.2078,3929.3,3928.9,0.45807]
[1761314849341,9.55,3929.2,3928.9,0.45807]
[1761314849648,0.45808,3928.8,3928.6,3.2107975]
[1761314849839,0.45804,3929.2,3928.6,3.2107975]
[1761314850042,9.55,3929.1,3929.0,3.2078]
[1761314850538,9.55,3929.1,3928.9,0.45806]
[1761314850740,9.551,3929.2,3928.9,0.45806]
[1761314850951,0.00188432,3929.7,3928.9,0.45806]
[1761314851151,9.551,3929.4,3928.9,0.45806]
[1761314851446,0.00188432,3929.7,3929.0,0.45805]
[1761314851649,9.551,3929.6,3929.2,0.45802]
[1761314851845,0.00188432,3929.7,3929.5,3.2078]
[1761314852148,0.00188432,3929.7,3929.1,0.45804]
[1761314852446,0.00188432,3929.7,3929.0,3.2078]
[1761314852648,3.2078,3929.5,3928.7,0.67995583]
[1761314852843,3.2078,3929.5,3928.6,3.2107975]
[1761314853452,3.2078,3929.1,3928.6,0.0029975]
[1761314853649,9.552,3929.0,3928.6,0.0029975]
[1761314855351,3.2078,3928.7,3928.6,0.0029975]
[1761314855853,9.552,3928.7,3928.6,0.0029975]
[1761314856045,0.00188432,3929.7,3928.6,0.0029975]
[1761314856046,3.2078,3929.2,3929.0,0.45805]
[1761314856246,9.552,3929.1,3928.6,0.0029975]
[1761314856553,9.552,3929.1,3928.9,0.45807]
[1761314858346,9.552,3929.1,3928.8,0.45808]
[1761314858548,9.553,3929.0,3928.8,0.45808]
[1761314859151,0.00188432,3929.7,3929.2,0.45803]
[1761314859356,9.553,3929.6,3929.0,3.66585]
[1761314859647,9.553,3929.6,3927.5,2.29115]
[1761314859648,3.2078,3929.2,3928.0,3.66597]
[1761314859851,3.2078,3929.1,3928.0,3.66597]
[1761314860047,9.553,3929.0,3928.1,0.45816]
[1761314860248,3.2078,3929.1,3928.1,0.45816]
[1761314860556,3.048,3929.0,3928.1,0.00185303]
[1761314860750,3.048,3929.0,3928.1,0.46001303]
[1761314861460,3.048,3929.0,3928.1,0.00185303]
[1761314862154,3.2078,3929.1,3928.2,0.45815]
[1761314862353,9.553,3929.0,3928.2,0.45815]
[1761314862849,9.553,3929.0,3928.1,0.00185303]
[1761314863054,9.553,3929.0,3928.2,0.45815]
[1761314864057,9.553,3929.0,3928.1,0.00185303]
[1761314864256,9.553,3929.0,3928.1,0.46001303]
[1761314864458,3.2078,3928.7,3928.1,0.00185303]
[1761314865951,40.8,3929.6,3928.1,0.00185303]
[1761314865952,3.2078,3928.3,3928.1,0.00185303]
[1761314866151,9.554,3928.2,3928.1,0.00185303]
[1761314866556,3.2078,3928.3,3928.1,0.00185303]
[1761314866862,9.554,3928.2,3928.1,0.00185303]
[1761314867055,3.2078,3928.7,3928.1,0.00185303]
[1761314867359,9.554,3928.6,3928.1,0.00185303]
[1761314867752,3.2078,3928.7,3928.1,0.46001303]
[1761314867953,9.554,3928.5,3928.1,0.46001303]
[1761314868160,9.554,3928.5,3928.2,0.45815]
[1761314868459,3.2078,3928.7,3928.1,0.00185303]
[1761314868649,9.554,3928.6,3928.1,0.00185303]
[1761314868849,9.554,3928.5,3928.1,3.20965303]
[1761314869057,3.2078,3929.1,3928.5,0.45811]
[1761314869264,3.2078,3929.1,3928.1,3.20965303]
[1761314869451,3.2078,3929.1,3928.1,4.35504303]
[1761314869655,3.2078,3929.1,3928.7,0.45808]
[1761314870361,3.2078,3929.1,3928.4,0.45812]
[1761314870558,3.2078,3929.1,3928.5,0.45812]
[1761314870858,3.2078,3929.1,3928.2,0.45815]
[1761314871563,3.2078,3929.1,3928.3,0.45814]
[1761314871759,3.2078,3929.1,3928.4,0.45812]
[1761314872563,3.2078,3929.1,3928.3,0.45814]
[1761314873060,3.2078,3929.1,3928.1,3.20965303]
[1761314873260,3.2078,3929.1,3928.2,0.45815]
[1761314873564,3.2078,3928.3,3928.1,0.00185303]
[1761314873863,5.418,3928.2,3928.1,0.00185303]
[1761314874554,3.2078,3928.3,3928.1,0.00185303]
[1761314876663,9.553,3928.4,3928.1,0.00185303]
[1761314876962,3.2078,3928.3,3928.1,0.00185303]
[1761314877658,3.2078,3928.3,3928.1,0.46001303]
[1761314877862,9.553,3928.4,3928.1,0.00185303]
[1761314878666,9.553,3928.4,3928.1,0.46001303]
[1761314878858,3.2078,3928.8,3928.1,0.00185303]
[1761314879059,9.553,3928.7,3928.1,0.00185303]
[1761314879364,3.2078,3928.8,3928.1,0.00185303]
[1761314879365,9.553,3928.6,3928.1,0.46001303]
[1761314879762,9.553,3928.6,3928.2,0.45815]
[1761314879958,9.553,3928.6,3928.1,0.00185303]
[1761314879959,3.2078,3928.8,3928.3,0.45814]
[1761314880668,12.7598,3928.8,3928.4,0.45812]
[1761314880855,9.552,3928.8,3928.4,0.45812]
[1761314881060,3.2078,3929.2,3928.2,0.67995583]
[1761314881261,4.561,3929.1,3928.5,0.45811]
[1761314881470,4.561,3929.1,3928.4,1.13808583]
[1761314881665,3.2078,3929.2,3928.5,0.45812]
[1761314881970,4.561,3929.1,3928.6,0.4581]
[1761314882758,3.2078,3929.2,3928.5,0.67995583]
[1761314882969,3.2078,3929.2,3929.0,0.45806]
[1761314883353,0.00188432,3929.7,3929.1,0.45805]
[1761314883665,3.2078,3929.6,3928.9,3.2078]
[1761314883861,3.2078,3929.6,3929.0,0.45806]
[1761314884066,3.2078,3929.6,3929.1,0.45804]
[1761314884869,0.00188432,3929.7,3929.1,0.45804]
[1761314885060,0.00188432,3929.7,3928.9,3.88775583]
[1761314885262,0.00188432,3929.7,3929.0,0.45806]
[1761314885461,3.2078,3929.1,3928.6,0.67995583]
[1761314885662,3.2078,3929.1,3928.4,0.9061766]
[1761314885663,3.2078,3929.1,3928.4,0.45813]
[1761314885969,3.2078,3929.1,3928.3,0.67995583]
[1761314886167,3.2078,3929.1,3928.4,3.88775583]
[1761314886168,9.55,3929.1,3928.4,3.88775583]
[1761314886369,0.00188432,3929.7,3929.0,0.45806]
[1761314886575,6.14,3929.6,3928.8,3.2078]
[1761314886776,3.2078,3929.2,3928.6,0.67995583]
[1761314886964,6.14,3929.6,3928.3,0.67995583]
[1761314886965,3.2078,3928.7,3928.3,0.67995583]
[1761314887772,3.2078,3928.7,3928.1,0.68180886]
[1761314888275,11.9368,3928.7,3928.1,0.00185303]
[1761314888668,11.9368,3928.7,3927.3,0.67995583]
[1761314888669,3.2078,3928.2,3927.3,0.67995583]
[1761314888859,3.2078,3927.4,3926.7,0.67995583]
[1761314889064,3.2078,3927.4,3926.8,0.67995583]
[1761314889561,3.2078,3927.4,3926.7,0.67995583]
[1761314889765,3.2078,3927.4,3926.7,0.0019749]
[1761314891170,4.557,3927.3,3926.7,0.0019749]
[1761314891875,4.74994471,3929.4,3927.0,0.67995583]
[1761314891876,9.549,3928.1,3927.0,0.67995583]
[1761314892169,3.2078,3927.7,3927.0,0.45829]
[1761314892679,12.7568,3927.7,3927.0,0.45829]
[1761314892874,12.7568,3927.7,3926.9,3.88775583]
[1761314893068,12.7568,3927.7,3926.9,3.2078]
[1761314893469,3.2078,3927.3,3926.7,0.4602949]
[1761314893666,9.549,3927.2,3926.7,0.0019749]
[1761314893865,9.548,3927.2,3926.7,0.0019749]
[1761314894572,3.2078,3926.8,3926.0,0.67995583]
[1761314894875,3.2078,3926.3,3925.4,3.2078]
[1761314895073,3.2078,3925.7,3924.8,3.2078]
[1761314895562,3.21090565,3925.7,3924.8,3.20972996]
[1761314897969,3.2078,3924.9,3924.8,0.00192996]
[1761314898178,8.2078,3924.9,3923.2,0.67995583]
[1761314898474,3.2078,3924.1,3922.8,0.025492]
[1761314898782,3.2078,3923.6,3922.8,0.025492]
[1761314899073,3.2078,3923.2,3922.0,156.2078]
[1761314899273,3.2078,3922.1,3922.0,152.5405066]
[1761314899472,3.2078,3922.6,3922.0,152.5405066]
[1761314899686,22.924,3923.7,3922.3,3.2078]
[1761314899878,9.549,3923.6,3922.7,3.2078]
[1761314900174,9.549,3923.5,3922.7,3.21071781]
[1761314900381,3.2078,3922.8,3922.7,0.00291781]
[1761314900575,0.45873,3923.3,3922.7,0.00291781]
[1761314900769,4.234,3923.4,3922.7,0.00291781]
[1761314901180,0.45877,3922.9,3922.7,0.00291781]
[1761314901377,3.2078,3923.1,3922.0,152.5405066]
[1761314901674,0.45879,3922.8,3922.0,152.5405066]
[1761314901981,3.6666,3922.7,3922.0,152.5405066]
[1761314902285,3.2078,3922.7,3922.0,152.5405066]
[1761314902468,3.2078,3922.7,3922.0,152.5432802]
[1761314902781,3.2078,3922.7,3922.0,153.0021502]
[1761314903277,3.6666,3922.7,3922.0,153.0021502]
[1761314903983,0.45882,3922.5,3922.0,152.5432802]
[1761314904276,3.2078,3922.7,3922.0,152.5432802]
[1761314904467,0.649,3922.6,3920.2,0.67995583]
[1761314904667,0.649,3922.6,3919.2,0.16464615]
[1761314904668,11.47916,3919.6,3919.2,0.16464615]
[1761314904867,11.47916,3919.6,3916.3,0.14980721]
[1761314904868,1.14841,3917.9,3916.3,0.14980721]
[1761314905071,3.2078,3917.9,3916.7,0.45949]
[1761314905274,3.2078,3917.9,3916.2,3.094]
[1761314905275,3.2078,3917.9,3916.8,1.55284514]
[1761314905476,3.2078,3917.9,3917.8,1.55284514]
[1761314905680,2.64175,3918.4,3918.1,0.45933]
[1761314905975,3.2078,3919.3,3919.0,0.2551]
[1761314906181,3.2078,3919.3,3918.3,3.6671]
[1761314906370,3.2078,3919.7,3919.2,0.2551]
[1761314906570,3.2078,3920.7,3919.6,0.2551]
[1761314906776,3.20997928,3920.7,3919.6,0.00331117]
[1761314906980,0.00217928,3920.7,3920.6,0.2551]
[1761314908378,0.00217928,3920.7,3920.2,3.2078]
[1761314908578,3.2078,3920.5,3919.7,0.45914]
[1761314908780,0.00217928,3920.7,3920.0,3.2078]
[1761314908975,0.00217928,3920.7,3920.6,0.2551]
[1761314909177,3.2078,3921.4,3920.6,0.2551]
[1761314909484,3.2078,3921.8,3921.3,0.2551]
[1761314909686,0.45886,3922.2,3922.1,0.2551]
[1761314909879,3.66664,3922.3,3922.1,0.2551]
[1761314910080,3.66854533,3922.3,3921.4,0.45894]
[1761314910476,3.66854533,3922.3,3922.0,0.2551]
[1761314911187,0.45886,3922.2,3922.0,0.2551]
[1761314912184,3.20970533,3922.3,3922.1,0.2551]
[1761314912392,3.20970533,3922.3,3922.2,0.2551]
[1761314912690,0.45885,3922.2,3922.0,0.2551]
[1761314912887,0.45888,3922.0,3921.3,0.45895]
[1761314913186,3.20970533,3922.3,3921.9,0.2551]
[1761314913385,3.20970533,3922.3,3922.2,0.2551]
[1761314914090,0.00190533,3922.3,3922.2,0.2551]
[1761314915176,0.88956552,3924.1,3922.3,1.1471]
[1761314915376,0.62125983,3924.0,3922.4,1.14706]
[1761314915575,3.67383,3924.3,3923.9,0.2551]
[1761314915780,3.21522,3924.3,3924.2,0.2551]
[1761314916079,3.217572,3924.3,3924.2,0.25738766]
[1761314916273,3.217572,3924.3,3924.2,0.71599766]
[1761314916478,1.14604,3926.0,3924.2,0.25738766]
[1761314916783,0.45855,3924.8,3924.5,0.2551]
[1761314916982,0.45854,3924.9,3924.2,0.00228766]
[1761314917287,3.77,3926.2,3924.9,0.2551]
[1761314917486,3.77,3926.2,3924.2,0.00228766]
[1761314917487,1.14605,3925.9,3925.0,0.2551]
[1761314917677,0.45849,3925.4,3925.1,0.2551]
[1761314917882,0.4585,3925.3,3925.1,0.2551]
[1761314918090,0.45853,3925.0,3924.3,3.075]
[1761314918281,0.45853,3925.0,3924.4,0.45859]
[1761314918585,0.45853,3925.0,3924.9,0.2551]
[1761314918887,0.45861,3924.3,3924.2,0.00228766]
[1761314919284,0.45861,3924.3,3924.2,0.25738766]
[1761314919680,0.45861,3924.3,3924.2,0.00228766]
[1761314919884,5.62288706,3924.3,3922.5,0.45881]
[1761314920079,0.62288706,3924.2,3922.2,3.239]
[1761314920286,12.19594471,3925.4,3923.0,0.2551]
[1761314920287,0.62288706,3924.1,3923.0,0.2551]
[1761314920488,0.62288706,3924.0,3922.7,0.45879]
[1761314920684,0.62288706,3923.9,3923.3,0.2551]
[1761314920988,0.62288706,3923.8,3923.3,0.25819012]
[1761314921290,0.62288706,3923.7,3923.3,0.25819012]
[1761314921592,0.62288706,3923.6,3923.3,0.25819012]
[1761314921794,0.62288706,3923.5,3921.2,1.14742]
[1761314921988,0.62288706,3923.4,3921.9,6.867]
[1761314922178,0.62288706,3923.3,3921.9,6.867]
[1761314922383,1.33434829,3924.0,3923.7,0.2551]
[1761314922582,0.6245147,3923.9,3923.2,0.45872]
[1761314922792,0.6245147,3923.8,3923.3,0.45872]
[1761314923096,0.6245147,3923.8,3923.2,0.00283739]
[1761314923279,0.6245147,3923.8,3923.4,0.2551]
[1761314923482,1.33434829,3923.8,3923.4,0.2551]
[1761314923694,0.6245147,3923.7,3923.2,0.00283739]
[1761314923995,0.6245147,3923.7,3923.3,0.2551]
[1761314924191,0.6245147,3923.6,3923.3,0.2551]
[1761314924495,0.6245147,3923.5,3923.3,0.2551]
[1761314924694,0.6245147,3923.4,3923.3,0.2551]
[1761314925498,0.6245147,3923.4,3923.3,5.2551]
[1761314925688,0.6245147,3923.4,3923.3,0.2551]
[1761314926899,1.94653463,3923.4,3923.3,0.2551]
[1761314927195,1.98037479,3923.4,3923.3,0.2551]
[1761314927394,1.98037479,3923.4,3923.3,5.2551]
[1761314927588,0.65835486,3923.4,3923.3,0.2551]
[1761314929395,13.76021552,3923.4,3922.0,3.2078]
[1761314929595,2.20394471,3922.7,3922.0,0.20541776]
[1761314929795,15.03806679,3922.6,3920.4,0.45906]
[1761314929991,1.76327343,3921.4,3920.9,0.15437183]
[1761314930190,2.42162829,3921.3,3921.0,0.15437183]
[1761314930394,2.20409179,3921.8,3921.0,0.15437183]
[1761314930395,0.65835486,3921.2,3921.1,0.15437183]
[1761314930597,0.65835486,3921.2,3921.0,0.00208335]
[1761314930897,1.9806199,3921.1,3921.0,0.00208335]
[1761314931096,1.98307341,3921.1,3921.0,0.00208335]
[1761314931602,1.98307341,3921.1,3921.0,0.15645518]
[1761314932290,1.98307341,3921.1,3921.0,0.00208335]
[1761314932495,0.66080837,3921.1,3921.0,0.00208335]
[1761314932695,5.66080837,3921.1,3921.0,0.00208335]
[1761314932898,5.66080837,3921.1,3919.2,0.4592]
[1761314933094,1.32164767,3920.2,3919.9,0.15437183]
[1761314933403,0.65835486,3920.1,3919.8,0.15437183]
[1761314933604,0.65835486,3920.0,3919.8,0.15437183]
[1761314933896,0.65835486,3919.9,3919.8,0.00194559]
[1761314934102,1.32164767,3920.7,3919.8,0.15631742]
[1761314934305,1.32164767,3920.7,3920.4,0.15437183]
[1761314934604,1.32164767,3920.8,3920.4,0.15437183]
[1761314934797,1.32164767,3920.8,3919.8,1.14977559]
[1761314935000,1.32164767,3921.0,3920.7,0.15437183]
[1761314935306,0.00245351,3921.1,3920.9,0.15437183]
[1761314935505,0.00245351,3921.1,3921.0,0.15437183]
[1761314936105,1.32572318,3921.1,3921.0,0.15437183]
[1761314936304,0.00245351,3921.1,3921.0,0.15437183]
[1761314936820,0.00245351,3921.1,3921.0,5.15437183]
[1761314937019,1.7621969,3922.0,3921.2,0.15437183]
[1761314937315,2.20409179,3922.2,3920.8,1.14753]
[1761314937316,1.7621969,3922.3,3922.0,0.45887]
[1761314937510,1.7621969,3922.4,3922.2,0.15437183]
[1761314937816,1.7621969,3922.9,3922.8,0.15437183]
[1761314938122,0.0019769,3922.9,3922.8,0.00281818]
[1761314940811,0.0019769,3922.9,3922.8,0.15719001]
[1761314943821,1.7621969,3924.1,3922.8,0.15719001]
[1761314944125,1.7621969,3923.7,3923.1,0.15437183]
[1761314944316,1.7621969,3923.8,3923.1,0.15437183]
[1761314944522,1.7621969,3923.8,3922.8,0.00281818]
[1761314944726,1.76438239,3923.8,3922.9,0.15437183]
[1761314945323,0.88386394,3923.2,3922.9,0.15437183]
[1761314945521,0.88386394,3923.2,3921.8,1.14724]
[1761314945522,0.88386394,3923.1,3920.0,2.29556]
[1761314945715,0.88386394,3923.0,3921.8,0.15437183]
[1761314945920,0.88386394,3923.0,3920.1,6.68152]
[1761314945921,0.88386394,3922.3,3920.1,4.386]
[1761314946225,5.29302612,3923.8,3921.8,0.4589]
[1761314946226,0.62827326,3922.2,3921.8,0.4589]
[1761314946427,0.62827326,3922.1,3921.9,0.45889]
[1761314946622,0.88386394,3922.8,3922.1,0.45886]
[1761314946926,0.62847106,3922.7,3922.6,0.15437183]
[1761314947228,0.62847106,3922.7,3922.3,0.45884]
[1761314947430,0.62847106,3922.6,3922.4,0.45883]
[1761314947727,0.62847106,3922.5,3922.4,0.45883]
[1761314947927,0.88386394,3923.1,3922.8,0.15437183]
[1761314948128,0.62886383,3923.0,3922.9,0.45877]
[1761314948337,0.62886383,3923.0,3922.9,0.61314183]
[1761314948633,0.88604943,3923.8,3923.2,0.45873]
[1761314948816,0.62906669,3923.7,3923.5,0.15437183]
[1761314949123,0.62906669,3923.6,3923.3,0.45872]
[1761314949430,0.00218549,3923.8,3923.5,0.45869]
[1761314949616,0.6292703,3923.7,3923.3,0.45871]
[1761314949815,0.6292703,3923.6,3923.4,0.45871]
[1761314950119,0.00218549,3923.8,3923.7,0.15437183]
[1761314950520,0.63170822,3923.8,3923.6,0.45869]
[1761314950719,0.00218549,3923.8,3923.7,0.15437183]
[1761314952230,0.00218549,3923.8,3923.5,0.4587]
[1761314952431,0.00218549,3923.8,3923.6,0.15437183]
[1761314954230,0.61942449,3923.7,3922.2,1.14712]
[1761314954431,0.61942449,3923.6,3923.1,0.15437183]
[1761314954624,0.00218549,3923.8,3923.1,0.15437183]
[1761314954817,0.61934608,3923.7,3923.1,0.15437183]
[1761314955018,0.00218549,3923.8,3923.2,0.45874]
[1761314955223,0.00218549,3923.8,3922.7,1.147]
[1761314955424,0.00218549,3923.8,3923.7,0.15437183]
[1761314956229,0.00218549,3923.8,3923.1,0.45874]
[1761314956625,0.00218549,3923.8,3923.4,0.15437183]
[1761314957334,0.00218549,3923.8,3922.4,1.14708]
[1761314957534,0.00218549,3923.8,3923.4,0.15437183]
[1761314958038,0.00218549,3923.8,3922.0,0.45887]
[1761314958039,0.88386394,3923.5,3922.0,0.45887]
[1761314958336,0.88386394,3923.5,3922.4,0.15437183]
[1761314959027,0.88386394,3923.5,3921.5,1.14733]
[1761314959028,0.88386394,3923.5,3922.6,0.15437183]
[1761314959224,16.24735836,3923.7,3922.3,0.45884]
[1761314959225,0.61933645,3923.4,3922.3,0.45884]
[1761314959425,0.61933645,3923.3,3922.7,0.15437183]
[1761314959626,0.61933645,3923.2,3922.7,0.15437183]
[1761314959821,0.61933645,3923.2,3922.2,0.45886]
[1761314959822,0.61933645,3923.1,3922.0,0.45888]
[1761314960028,0.61933645,3923.0,3922.7,0.15437183]
[1761314960337,0.61953638,3922.9,3922.7,0.15437183]
[1761314960636,0.88386394,3923.5,3922.1,0.45887]
[1761314960831,0.88386394,3923.5,3922.7,0.15437183]
[1761314961139,0.88386394,3923.5,3922.9,0.15437183]
[1761314961436,0.6196182,3923.4,3922.2,1.029]
[1761314961638,0.6196182,3923.3,3922.7,0.45879]
[1761314961843,0.6196182,3923.2,3922.7,0.45879]
[1761314962029,0.00218549,3923.8,3922.8,0.45878]
[1761314962230,0.62002153,3923.7,3923.3,0.15437183]
[1761314962431,0.62002153,3923.6,3923.3,0.15437183]
[1761314962635,0.62002153,3923.5,3923.3,0.15437183]
[1761314962941,0.62002153,3923.4,3922.8,0.45878]
[1761314963237,0.00218549,3923.8,3923.7,0.15437183]
[1761314963741,0.00218549,3923.8,3922.7,0.45879]
[1761314964036,0.62077173,3923.7,3923.6,0.15437183]
[1761314964739,1.94879364,3923.7,3921.9,0.00236987]
[1761314964938,1.50877503,3923.6,3923.0,0.15437183]
[1761314965143,0.62077173,3923.5,3923.0,0.15437183]
[1761314965345,0.62077173,3923.4,3922.4,0.45882]
[1761314965643,0.62077173,3923.3,3923.1,0.15437183]
[1761314965833,0.8880033,3923.6,3922.6,0.4588]
[1761314965834,0.62077173,3923.2,3922.6,0.4588]
[1761314966034,0.62077173,3923.1,3922.4,0.45882]
[1761314966234,0.62077173,3923.0,3922.5,0.45882]
[1761314966435,0.62077173,3922.9,3922.6,0.45881]
[1761314966632,0.8880033,3923.6,3922.6,0.45881]
[1761314966836,0.62217491,3923.5,3923.2,0.15437183]
[1761314967041,0.62217491,3923.4,3923.2,0.15437183]
[1761314967243,0.6222645,3923.3,3922.5,1.14706]
[1761314967437,0.6222645,3923.2,3922.3,1.14712]
[1761314967640,0.8880033,3923.7,3923.5,0.15437183]
[1761314967941,1.51046384,3923.7,3923.6,0.15437183]
[1761314968143,0.62246054,3923.7,3923.6,0.15437183]
[1761314969546,0.62246054,3923.7,3923.2,0.45874]
[1761314969748,0.62246054,3923.7,3923.6,0.15437183]
[1761314970943,0.62246054,3923.7,3922.3,1.14711]
[1761314971155,0.62246054,3923.7,3923.3,0.15437183]
[1761314971645,0.62246054,3923.7,3923.0,0.45876]
[1761314971848,0.62246054,3923.7,3923.3,0.15437183]
[1761314972447,0.62246054,3923.7,3922.2,1.14714]
[1761314972643,0.62246054,3923.7,3923.1,0.15437183]
[1761314972850,0.8880033,3923.5,3922.3,0.45884]
[1761314973146,0.88966858,3923.1,3922.8,0.15437183]
[1761314973338,0.62246054,3923.0,3922.8,0.15437183]
[1761314973539,0.62246054,3922.9,3922.8,0.15437183]
[1761314973741,0.62246054,3922.9,3922.3,0.45884]
[1761314974045,0.62246054,3922.8,3922.6,0.15437183]
[1761314974249,0.62246054,3922.7,3922.3,0.45884]
[1761314974447,0.88966858,3923.1,3922.6,0.15437183]
[1761314974641,0.62142023,3923.0,3922.1,8.617]
[1761314974834,0.62142023,3922.9,3922.5,0.15437183]
[1761314975040,0.62142023,3922.8,3922.5,0.15437183]
[1761314975249,0.62142023,3922.7,3922.5,0.15437183]
[1761314975448,0.62142023,3922.6,3922.5,0.15437183]
[1761314977944,0.62142023,3922.6,3922.5,0.61319183]
[1761314978544,0.88966858,3923.6,3922.8,1.14697]
[1761314978752,0.00218549,3923.8,3923.7,0.15437183]
[1761314979049,0.88966858,3924.5,3924.1,0.45863]
[1761314979249,0.88966858,3924.5,3924.3,0.15437183]
[1761314979747,0.88966858,3924.5,3923.5,1.14677]
[1761314979943,0.88966858,3924.5,3924.3,0.15437183]
[1761314979944,0.00261801,3924.5,3924.3,0.15437183]
[1761314980449,0.00261801,3924.5,3924.1,0.45863]
[1761314980751,0.00261801,3924.5,3924.0,0.15437183]
[1761314981249,0.89228659,3924.5,3923.6,0.45869]
[1761314981445,0.89228659,3924.5,3923.9,0.15437183]
[1761314981644,0.00261801,3924.5,3924.0,0.45864]
[1761314981848,0.00261801,3924.5,3924.2,0.45862]
[1761314982049,0.00261801,3924.5,3924.4,0.15437183]
[1761314984547,0.88966858,3925.9,3925.1,0.45851]
[1761314984749,0.88966858,3926.0,3925.2,0.15437183]
[1761314984959,0.88966858,3926.0,3925.2,0.61287183]
[1761314985146,0.88966858,3926.0,3924.8,0.45855]
[1761314985346,0.88966858,3926.0,3925.0,0.15437183]
[1761314985547,0.00219663,3926.0,3925.0,0.00248223]
[1761314985848,0.00219663,3926.0,3925.2,0.15437183]
[1761314986244,0.00219663,3926.0,3925.0,0.00248223]
[1761314986459,0.00219663,3926.0,3925.5,0.15437183]
[1761314987252,0.00219663,3926.0,3925.0,0.00248223]
[1761314987459,0.00219663,3926.0,3925.9,0.15437183]
[1761314987854,0.00219663,3926.0,3925.9,0.61279183]
[1761314988060,0.00219663,3926.0,3925.9,0.15437183]
[1761314989849,0.00219663,3926.0,3925.1,0.45852]
[1761314990058,0.00219663,3926.0,3925.9,0.15437183]
[1761314995764,0.00219663,3926.0,3925.0,9.72748223]
[1761314995765,0.00219663,3926.0,3925.1,0.45851]
[1761314996061,0.00219663,3926.0,3925.0,0.00248223]
[1761314996549,0.00219663,3926.0,3925.8,0.15437183]
[1761314997064,0.00219663,3926.0,3925.4,0.45848]
[1761314997262,0.00219663,3926.0,3925.6,0.45845]
[1761314997564,0.00219663,3926.0,3925.0,0.00248223]
[1761314997565,0.00219663,3926.0,3925.9,0.15437183]
[1761314998756,0.00219663,3926.0,3925.9,0.61279183]
[1761315000960,0.88966858,3927.6,3926.2,0.45839]
[1761315001169,0.61212813,3927.5,3925.8,9.659]
[1761315001473,0.61212813,3927.4,3925.9,2.29212]
[1761315001662,0.022,3927.8,3927.5,0.15437183]
[1761315002170,0.02426538,3927.8,3927.1,0.45828]
[1761315002368,0.02426538,3927.8,3927.5,0.15437183]
[1761315002865,0.02426538,3927.8,3927.0,0.45829]
[1761315003064,0.02426538,3927.8,3927.2,0.15437183]
[1761315003762,0.02426538,3927.8,3926.0,3.848]
[1761315004065,0.61142277,3927.7,3926.1,3.848]
[1761315004271,0.88966858,3927.7,3926.4,0.15437183]
[1761315004461,0.88966858,3927.5,3926.4,0.15437183]
[1761315004661,0.61142277,3927.4,3925.9,0.45842]
[1761315004964,0.61142277,3927.4,3926.4,0.15437183]
[1761315005359,1.50109135,3927.4,3925.7,9.653]
[1761315005565,0.02426538,3927.8,3925.7,9.653]
[1761315005566,0.61142277,3927.3,3925.7,9.653]
[1761315005763,0.61142277,3927.2,3926.5,0.15437183]
[1761315005958,0.61142277,3927.1,3926.5,0.15437183]
[1761315006159,0.88966858,3927.7,3926.5,0.15437183]
[1761315006367,1.50228276,3927.6,3926.5,0.15437183]
[1761315006662,1.50228276,3927.5,3926.5,0.15437183]
[1761315006864,0.61261418,3927.4,3925.9,1.14605]
[1761315007172,0.61261418,3927.3,3926.6,0.15437183]
[1761315007372,0.61261418,3927.2,3926.5,0.15437183]
[1761315007572,0.61261418,3927.1,3926.5,0.15437183]
[1761315007775,0.61261418,3927.0,3926.5,0.15437183]
[1761315007969,0.61261418,3926.9,3926.5,0.15437183]
[1761315008169,0.61261418,3926.8,3926.6,0.15437183]
[1761315008370,0.61261418,3926.7,3926.6,0.15437183]
[1761315008572,4.41139801,3929.5,3927.6,2.546]
[1761315008865,4.41139801,3929.5,3926.5,0.04431427]
[1761315008866,3.08674884,3932.2,3928.1,1.14542]
[1761315009172,0.022,3932.8,3928.7,0.68243324]
[1761315009173,0.07402435,3931.1,3928.7,0.68243324]
[1761315009372,0.07402435,3931.1,3928.6,0.4581]
[1761315009572,0.89224688,3930.0,3928.6,8.98326771]
[1761315010362,0.89224688,3930.0,3928.6,0.00326771]
[1761315010562,24.07957397,3929.9,3928.6,0.00326771]
[1761315010773,0.07957397,3929.8,3928.6,0.00326771]
[1761315012469,14.764,3929.7,3926.9,0.45831]
[1761315012772,0.07957397,3929.6,3926.4,0.68243324]
[1761315012969,0.07957397,3929.6,3926.8,0.45831]
[1761315013168,0.07957397,3929.6,3926.9,0.4583]
[1761315013369,0.07957397,3929.6,3927.0,0.45829]
[1761315013671,9.76,3929.5,3927.6,0.45822]
[1761315013871,0.07957397,3929.4,3927.4,0.45825]
[1761315014271,0.07957397,3929.4,3927.0,0.46093497]
[1761315014572,0.07957397,3929.4,3927.1,0.45828]
[1761315016077,0.07957397,3929.4,3927.0,0.00264497]
[1761315016262,0.07957397,3929.4,3927.1,0.45827]
[1761315017273,0.07957397,3929.4,3927.2,0.45827]